fUST/lending_fUST_20250430
["ID","MTS","AMOUNT","RATE_DAILY","PERIOD"]
[359439554,1746019847278,-1018.96,0.00027671,2]
[359439555,1746019847287,-400.0,0.00027671,2]
[359439556,1746019847297,-485.09,0.00027671,2]
[359439557,1746019847307,-400.0,0.00027671,2]
[359439558,1746019847317,-400.0,0.00027671,2]
[359439559,1746019847327,-400.0,0.00027671,2]
[359439560,1746019847336,-400.0,0.00027671,2]
[359439561,1746019847346,-400.0,0.00027671,2]
[359439562,1746019847355,-744.28,0.00027671,2]
[359439563,1746019847365,-400.0,0.00027671,2]
[359439564,1746019847375,-510.2,0.00027671,2]
[359439565,1746019847385,-400.0,0.00027671,2]
[359439566,1746019847395,-704.98,0.00027671,2]
[359439567,1746019847404,-588.89,0.00027671,2]
[359439568,1746019847414,-400.0,0.00027671,2]
[359439569,1746019847423,-400.0,0.00027671,2]
[359439570,1746019847436,-400.0,0.00027671,2]
[359439571,1746019847446,-400.0,0.00027671,2]
[359439572,1746019847456,-400.0,0.00027671,2]
[359439573,1746019847466,-400.0,0.00027671,2]
[359439574,1746019847475,-792.91,0.00027671,2]
[359439575,1746019847485,-400.0,0.00027671,2]
[359439576,1746019847495,-401.07,0.00027671,2]
[359439577,1746019847505,-400.0,0.00027671,2]
[359439578,1746019847514,-500.0,0.00027671,2]
[359439579,1746019847524,-500.0,0.00027671,2]
[359439580,1746019847533,-151.0,0.00027671,2]
[359439581,1746019847543,-400.0,0.00027671,2]
[359439582,1746019847552,-500.0,0.00027671,2]
[359439583,1746019847562,-400.0,0.00027671,2]
[359439584,1746019847571,-151.0,0.00027671,2]
[359439585,1746019847582,-400.0,0.00027671,2]
[359439586,1746019847592,-400.0,0.00027671,2]
[359439587,1746019847602,-394.45248081,0.00027671,2]
[359439588,1746019847611,-400.0,0.00027671,2]
[359439589,1746019847622,-400.0,0.00027671,2]
[359439590,1746019847632,-531.0,0.00027671,2]
[359439591,1746019847642,-400.0,0.00027671,2]
[359439592,1746019847652,-778.36,0.00027671,2]
[359439593,1746019847663,-492.02,0.00027671,2]
[359439594,1746019847673,-400.0,0.00027671,2]
[359439595,1746019847689,-400.0,0.00027671,2]
[359439596,1746019847698,-832.99,0.00027671,2]
[359439597,1746019847708,-400.0,0.00027671,2]
[359439598,1746019847862,-400.0,0.00027671,2]
[359439599,1746019847872,-1743.84,0.00027671,2]
[359439600,1746019847881,-500.0,0.00027671,2]
[359439601,1746019847892,-400.0,0.00027671,2]
[359439602,1746019847901,-157.02175172,0.00027671,2]
[359439603,1746019847911,-151.0,0.00027671,2]
[359439604,1746019847921,-548.23,0.00027671,2]
[359439605,1746019847936,-400.0,0.00027671,2]
[359439606,1746019847946,-500.0,0.00027671,2]
[359439607,1746019847956,-400.0,0.00027671,2]
[359439608,1746019847966,-400.0,0.00027671,2]
[359439609,1746019847976,-500.0,0.00027671,2]
[359439610,1746019847986,-1158.2,0.00027671,2]
[359439611,1746019847996,-400.0,0.00027671,2]
[359439612,1746019848007,-400.0,0.00027671,2]
[359439613,1746019848018,-930.58,0.00027671,2]
[359439614,1746019848030,-400.0,0.00027671,2]
[359439615,1746019848041,-400.0,0.00027671,2]
[359439616,1746019848052,-826.23,0.00027671,2]
[359439617,1746019848062,-400.0,0.00027671,2]
[359439618,1746019848072,-400.0,0.00027671,2]
[359439619,1746019848082,-1830.06,0.00027671,2]
[359439620,1746019848093,-535.41,0.00027671,2]
[359439621,1746019848103,-522.0,0.00027671,2]
[359439622,1746019848114,-400.0,0.00027671,2]
[359439623,1746019848124,-702.49,0.00027671,2]
[359439624,1746019848134,-400.0,0.00027671,2]
[359439625,1746019848143,-400.0,0.00027671,2]
[359439626,1746019848152,-400.0,0.00027671,2]
[359439627,1746019848162,-400.0,0.00027671,2]
[359439628,1746019848172,-673.15,0.00027671,2]
[359439629,1746019848184,-232.98,0.00027671,2]
[359439630,1746019848194,-1454.11,0.00027671,2]
[359439631,1746019848204,-400.0,0.00027671,2]
[359439632,1746019848214,-485.0,0.00027671,2]
[359439633,1746019848226,-935.47,0.00027671,2]
[359439634,1746019848237,-400.0,0.00027671,2]
[359439635,1746019848247,-400.0,0.00027671,2]
[359439636,1746019848257,-610.88,0.00027671,2]
[359439637,1746019848267,-525.64,0.00027671,2]
[359439638,1746019848277,-400.0,0.00027671,2]
[359439639,1746019848287,-400.0,0.00027671,2]
[359439640,1746019848298,-400.0,0.00027671,2]
[359439641,1746019848308,-422.22,0.00027671,2]
[359439642,1746019848318,-290.11,0.00027671,2]
[359439643,1746019848328,-400.0,0.00027671,2]
[359439644,1746019848337,-1014.12,0.00027671,2]
[359439645,1746019848348,-400.0,0.00027671,2]
[359439646,1746019848358,-400.0,0.00027671,2]
[359439647,1746019848369,-400.0,0.00027671,2]
[359439648,1746019848379,-643.44,0.00027671,2]
[359439649,1746019848389,-400.0,0.00027671,2]
[359439650,1746019848399,-1552.4,0.00027671,2]
[359439651,1746019848409,-1578.34,0.00027671,2]
[359439652,1746019848419,-2133.98,0.00027671,2]
[359439653,1746019848432,-2085.42,0.00027671,2]
[359439654,1746019848441,-534.5,0.00027671,2]
[359439655,1746019848452,-400.0,0.00027671,2]
[359439656,1746019848462,-1255.91,0.00027671,2]
[359439657,1746019848472,-1954.9,0.00027671,2]
[359439658,1746019848481,-400.0,0.00027671,2]
[359439659,1746019848491,-400.0,0.00027671,2]
[359439660,1746019848501,-482.75,0.00027671,2]
[359439661,1746019848511,-400.0,0.00027671,2]
[359439662,1746019848521,-191.86,0.00027671,2]
[359439663,1746019848530,-400.0,0.00027671,2]
[359439664,1746019848540,-262.698182,0.00027671,7]
[359439665,1746019848550,-286.26894148,0.00027671,2]
[359439666,1746019848560,-785.98,0.00027671,2]
[359439667,1746019848570,-262.698182,0.00027671,7]
[359439668,1746019848580,-400.0,0.00027671,2]
[359439669,1746019848590,-4593.88,0.00027671,2]
[359439670,1746019848600,-400.0,0.00027671,2]
[359439671,1746019848610,-204.26,0.00027671,2]
[359439672,1746019848620,-400.0,0.00027671,2]
[359439673,1746019848630,-400.0,0.00027671,2]
[359439674,1746019848640,-3156.88,0.00027671,2]
[359439675,1746019848650,-1138.91,0.00027671,2]
[359439676,1746019848660,-400.0,0.00027671,2]
[359439677,1746019848670,-400.0,0.00027671,2]
[359439678,1746019848683,-1541.01,0.00027671,2]
[359439679,1746019848693,-411.06170154,0.00027671,2]
[359439680,1746019848704,-583.69,0.00027671,2]
[359439681,1746019848714,-400.0,0.00027671,2]
[359439682,1746019848724,-400.0,0.00027671,2]
[359439683,1746019848736,-569.3,0.00027671,2]
[359439684,1746019848747,-400.0,0.00027671,2]
[359439685,1746019848757,-4251.49,0.00027671,2]
[359439686,1746019848767,-400.0,0.00027671,2]
[359439687,1746019848776,-151.0,0.00027671,7]
[359439688,1746019848786,-899.88,0.00027671,2]
[359439689,1746019848795,-151.0,0.00027671,7]
[359439690,1746019848805,-400.0,0.00027671,2]
[359439691,1746019848814,-311.99,0.00027671,2]
[359439692,1746019848824,-664.92,0.00027671,2]
[359439693,1746019848833,-400.0,0.00027671,2]
[359439694,1746019848843,-151.0,0.00027671,7]
[359439695,1746019848853,-400.0,0.00027671,2]
[359439696,1746019848862,-1069.56,0.00027671,2]
[359439697,1746019848871,-501.10113133,0.00027673,5]
[359439698,1746019848881,-500.0,0.00027673,5]
[359439699,1746019848891,-500.0,0.00027673,5]
[359439700,1746019848901,-500.01303977,0.00027673,5]
[359439701,1746019848911,-500.65173706,0.00027673,5]
[359439702,1746019848921,-500.0,0.00027673,5]
[359439703,1746019848933,-500.0,0.00027673,5]
[359439704,1746019848943,-500.0,0.00027673,5]
[359439705,1746019848953,-151.77540234,0.00027673,5]
[359439706,1746019848963,-500.0,0.00027673,5]
[359439707,1746019848973,-500.0,0.00027673,5]
[359439708,1746019848982,-490.34646445,0.00027673,5]
[359439709,1746019848993,-500.0,0.00027673,5]
[359439710,1746019849005,-500.0,0.00027673,5]
[359439711,1746019849023,-500.0,0.00027673,5]
[359439712,1746019849032,-262.698182,0.00027673,7]
[359439713,1746019849042,-262.698182,0.00027673,7]
[359439714,1746019849051,-151.0,0.00027673,7]
[359439715,1746019849062,-232.535628,0.00027673,7]
[359439716,1746019849071,-151.0,0.00027673,7]
[359439717,1746019849081,-500.0,0.00027698,2]
[359439718,1746019849092,-500.0,0.00027698,2]
[359439719,1746019849101,-151.0,0.00027698,2]
[359439720,1746019849111,-500.0,0.00027698,2]
[359439721,1746019849121,-500.0,0.00027698,2]
[359439722,1746019849130,-500.0,0.00027698,2]
[359439723,1746019849139,-151.0,0.00027698,2]
[359439724,1746019849149,-500.0,0.00027698,2]
[359439725,1746019849158,-240.54488694,0.00027698,2]
[359439726,1746019849168,-500.0,0.00027698,2]
[359439727,1746019849177,-182.4960676,0.00027698,2]
[359439728,1746019849189,-500.0,0.00027698,2]
[359439729,1746019849198,-500.0,0.00027698,2]
[359439730,1746019849208,-485.0,0.00027698,2]
[359439731,1746019849217,-500.0,0.00027726,2]
[359439732,1746019849226,-500.0,0.00027726,2]
[359439733,1746019849236,-151.0,0.00027726,2]
[359439734,1746019849245,-500.0,0.00027726,2]
[359439735,1746019849255,-500.0,0.00027726,2]
[359439736,1746019849264,-500.0,0.00027726,2]
[359439737,1746019849274,-151.0,0.00027726,2]
[359439738,1746019849285,-500.0,0.00027726,2]
[359439739,1746019849295,-500.0,0.00027726,2]
[359439740,1746019849306,-500.0,0.00027726,2]
[359439741,1746019849315,-500.0,0.00027726,2]
[359439742,1746019849325,-485.0,0.00027726,2]
[359439743,1746019849335,-403.0,0.00027727,2]
[359439744,1746019849344,-564.783,0.00027727,2]
[359439745,1746019849355,-251.367,0.00027751,2]
[359439746,1746019849364,-293.40208566,0.00027753,2]
[359439747,1746019849373,-500.0,0.00027753,2]
[359439748,1746019849383,-151.0,0.00027753,2]
[359439749,1746019849392,-500.0,0.00027753,2]
[359439750,1746019849401,-500.0,0.00027753,2]
[359439751,1746019849411,-621.05589543,0.00027753,2]
[359439752,1746019849422,-151.0,0.00027753,2]
[359439753,1746019849434,-500.0,0.00027753,2]
[359439754,1746019849445,-500.0,0.00027753,2]
[359439755,1746019849455,-500.0,0.00027753,2]
[359439756,1746019849465,-500.0,0.00027753,2]
[359439757,1746019849475,-485.0,0.00027753,2]
[359439758,1746019849485,-500.0,0.00027781,2]
[359439759,1746019849495,-151.0,0.00027781,2]
[359439760,1746019849505,-500.0,0.00027781,2]
[359439761,1746019849514,-500.0,0.00027781,2]
[359439762,1746019849524,-156.48133557,0.00027781,2]
[359439763,1746019849535,-500.0,0.00027781,2]
[359439764,1746019849545,-500.0,0.00027781,2]
[359439765,1746019849555,-500.0,0.00027781,2]
[359439766,1746019849565,-500.0,0.00027781,2]
[359439767,1746019849574,-485.0,0.00027781,2]
[359439768,1746019849584,-500.0,0.00027808,2]
[359439769,1746019849594,-169.58408019,0.00027808,2]
[359439770,1746019849603,-500.0,0.00027808,2]
[359439771,1746019849613,-500.0,0.00027808,2]
[359439772,1746019849623,-500.0,0.00027808,2]
[359439773,1746019849632,-510.70474813,0.00027808,2]
[359439774,1746019849642,-500.0,0.00027808,2]
[359439775,1746019849652,-500.0,0.00027808,2]
[359439776,1746019849663,-485.0,0.00027808,2]
[359439777,1746019849672,-305.81467136,0.00027811,2]
[359439778,1746019849684,-500.0,0.00027835,2]
[359439779,1746019849694,-500.0,0.00027835,2]
[359439780,1746019849704,-329.82936567,0.00027835,2]
[359439781,1746019849714,-500.0,0.00027835,2]
[359439782,1746019849724,-500.0,0.00027835,2]
[359439783,1746019849733,-500.0,0.00027835,2]
[359439784,1746019849743,-485.0,0.00027835,2]
[359439785,1746019849753,-500.0,0.00027863,2]
[359439786,1746019849762,-500.0,0.00027863,2]
[359439787,1746019849772,-500.0,0.00027863,2]
[359439788,1746019849782,-500.0,0.00027863,2]
[359439789,1746019849791,-500.0,0.00027863,2]
[359439790,1746019849801,-485.0,0.00027863,2]
[359439791,1746019849811,-500.0,0.0002789,2]
[359439792,1746019849820,-500.0,0.0002789,2]
[359439793,1746019849830,-588.22734338,0.0002789,2]
[359439794,1746019849840,-500.0,0.0002789,2]
[359439795,1746019849850,-500.0,0.0002789,2]
[359439796,1746019849860,-485.0,0.0002789,2]
[359439797,1746019849870,-500.0,0.00027918,2]
[359439798,1746019849879,-500.0,0.00027918,2]
[359439799,1746019849889,-500.0,0.00027918,2]
[359439800,1746019849898,-500.0,0.00027918,2]
[359439801,1746019849908,-485.0,0.00027918,2]
[359439802,1746019849918,-500.0,0.00027945,2]
[359439803,1746019849929,-500.0,0.00027945,2]
[359439804,1746019849943,-500.0,0.00027945,2]
[359439805,1746019849953,-500.0,0.00027945,2]
[359439806,1746019849962,-485.0,0.00027945,2]
[359439807,1746019849972,-400.0,0.00027945,2]
[359439808,1746019849982,-400.0,0.00027945,2]
[359439809,1746019849991,-400.0,0.00027945,2]
[359439810,1746019850002,-400.0,0.00027945,2]
[359439811,1746019850013,-1077.96,0.00027945,2]
[359439812,1746019850027,-400.0,0.00027945,2]
[359439813,1746019850038,-220.07157694,0.00027945,2]
[359439814,1746019850048,-400.0,0.00027945,2]
[359439815,1746019850058,-400.0,0.00027945,2]
[359439816,1746019850069,-400.0,0.00027945,2]
[359439817,1746019850079,-400.0,0.00027945,2]
[359439818,1746019850089,-400.0,0.00027945,2]
[359439819,1746019850100,-480.54,0.00027945,2]
[359439820,1746019850110,-953.6,0.00027945,2]
[359439821,1746019850120,-400.0,0.00027945,2]
[359439822,1746019850130,-400.0,0.00027945,2]
[359439823,1746019850140,-400.0,0.00027945,2]
[359439824,1746019850151,-676.48,0.00027945,2]
[359439825,1746019850161,-400.0,0.00027945,2]
[359439826,1746019850171,-981.89,0.00027945,2]
[359439827,1746019850180,-400.0,0.00027945,2]
[359439828,1746019850205,-522.41994961,0.00027945,2]
[359439829,1746019850217,-567.14,0.00027945,2]
[359439830,1746019850228,-869.24,0.00027945,2]
[359439831,1746019850238,-400.0,0.00027945,2]
[359439832,1746019850248,-400.0,0.00027945,2]
[359439833,1746019850258,-465.80349204,0.00027945,2]
[359439834,1746019850269,-449.45,0.00027945,2]
[359439835,1746019850279,-400.0,0.00027945,2]
[359439836,1746019850289,-739.04,0.00027945,2]
[359439837,1746019850300,-910.98,0.00027945,2]
[359439838,1746019850310,-497.84,0.00027945,2]
[359439839,1746019850320,-470.45,0.00027945,2]
[359439840,1746019850330,-445.14066907,0.00027945,2]
[359439841,1746019850339,-1570.19,0.00027945,2]
[359439842,1746019850349,-400.0,0.00027945,2]
[359439843,1746019850359,-526.1,0.00027945,2]
[359439844,1746019850369,-400.0,0.00027945,2]
[359439845,1746019850378,-1391.98,0.00027945,2]
[359439846,1746019850389,-400.0,0.00027945,2]
[359439847,1746019850399,-726.31,0.00027945,2]
[359439848,1746019850408,-549.35,0.00027945,2]
[359439849,1746019850418,-400.0,0.00027945,2]
[359439850,1746019850428,-400.0,0.00027945,2]
[359439851,1746019850442,-400.0,0.00027945,2]
[359439852,1746019850610,-400.0,0.00027945,2]
[359439853,1746019850620,-419.14,0.00027945,2]
[359439854,1746019850630,-400.0,0.00027945,2]
[359439855,1746019850640,-400.0,0.00027945,2]
[359439856,1746019850649,-1018.96,0.00027945,2]
[359439857,1746019850659,-400.0,0.00027945,2]
[359439858,1746019850669,-485.09,0.00027945,2]
[359439859,1746019850679,-510.12,0.00027945,2]
[359439860,1746019850692,-400.0,0.00027945,2]
[359439861,1746019850702,-400.0,0.00027945,2]
[359439862,1746019850712,-400.0,0.00027945,2]
[359439863,1746019850722,-293.22433241,0.00027945,2]
[359439864,1746019850733,-744.28,0.00027945,2]
[359439865,1746019850743,-400.0,0.00027945,2]
[359439866,1746019850754,-510.2,0.00027945,2]
[359439867,1746019850763,-400.0,0.00027945,2]
[359439868,1746019850773,-704.98,0.00027945,2]
[359439869,1746019850783,-588.89,0.00027945,2]
[359439870,1746019850793,-400.0,0.00027945,2]
[359439871,1746019850803,-400.0,0.00027945,2]
[359439872,1746019850812,-400.0,0.00027945,2]
[359439873,1746019850822,-400.0,0.00027945,2]
[359439874,1746019850832,-400.0,0.00027945,2]
[359439875,1746019850842,-400.0,0.00027945,2]
[359439876,1746019850852,-792.91,0.00027945,2]
[359439877,1746019850861,-400.0,0.00027945,2]
[359439878,1746019850871,-401.07,0.00027945,2]
[359439879,1746019850880,-400.0,0.00027945,2]
[359439880,1746019850890,-400.0,0.00027945,2]
[359439881,1746019850900,-400.0,0.00027945,2]
[359439882,1746019850910,-400.0,0.00027945,2]
[359439883,1746019850919,-400.0,0.00027945,2]
[359439884,1746019850929,-400.0,0.00027945,2]
[359439885,1746019850942,-400.0,0.00027945,2]
[359439886,1746019850951,-531.0,0.00027945,2]
[359439887,1746019850961,-400.0,0.00027945,2]
[359439888,1746019850971,-778.36,0.00027945,2]
[359439889,1746019850980,-492.02,0.00027945,2]
[359439890,1746019850990,-400.0,0.00027945,2]
[359439891,1746019850999,-400.0,0.00027945,2]
[359439892,1746019851013,-832.99,0.00027945,2]
[359439893,1746019851022,-280.49,0.00027945,2]
[359439894,1746019851032,-400.0,0.00027945,2]
[359439895,1746019851042,-1743.84,0.00027945,2]
[359439896,1746019851053,-400.0,0.00027945,2]
[359439897,1746019851062,-400.0,0.00027945,2]
[359439898,1746019851072,-400.0,0.00027945,2]
[359439899,1746019851083,-400.0,0.00027945,2]
[359439900,1746019851094,-1158.2,0.00027945,2]
[359439901,1746019851103,-400.0,0.00027945,2]
[359439902,1746019851113,-400.0,0.00027945,2]
[359439903,1746019851123,-930.58,0.00027945,2]
[359439904,1746019851133,-400.0,0.00027945,2]
[359439905,1746019851142,-400.0,0.00027945,2]
[359439906,1746019851153,-826.23,0.00027945,2]
[359439907,1746019851163,-400.0,0.00027945,2]
[359439908,1746019851172,-400.0,0.00027945,2]
[359439909,1746019851184,-1830.06,0.00027945,2]
[359439910,1746019851194,-535.41,0.00027945,2]
[359439911,1746019851204,-400.0,0.00027945,2]
[359439912,1746019851214,-702.49,0.00027945,2]
[359439913,1746019851227,-400.0,0.00027945,2]
[359439914,1746019851237,-400.0,0.00027945,2]
[359439915,1746019851247,-400.0,0.00027945,2]
[359439916,1746019851257,-223.84,0.00027945,2]
[359439917,1746019851267,-673.15,0.00027945,2]
[359439918,1746019851277,-1454.11,0.00027945,2]
[359439919,1746019851287,-400.0,0.00027945,2]
[359439920,1746019851297,-935.47,0.00027945,2]
[359439921,1746019851307,-400.0,0.00027945,2]
[359439922,1746019851316,-400.0,0.00027945,2]
[359439923,1746019851326,-610.88,0.00027945,2]
[359439924,1746019851336,-525.64,0.00027945,2]
[359439925,1746019851346,-400.0,0.00027945,2]
[359439926,1746019851355,-400.0,0.00027945,2]
[359439927,1746019851365,-400.0,0.00027945,2]
[359439928,1746019851374,-422.22,0.00027945,2]
[359439929,1746019851383,-400.0,0.00027945,2]
[359439930,1746019851391,-1014.12,0.00027945,2]
[359439931,1746019851400,-400.0,0.00027945,2]
[359439932,1746019851408,-400.0,0.00027945,2]
[359439933,1746019851417,-400.0,0.00027945,2]
[359439934,1746019851426,-643.44,0.00027945,2]
[359439935,1746019851440,-400.0,0.00027945,2]
[359439936,1746019851449,-1552.4,0.00027945,2]
[359439937,1746019851458,-1578.34,0.00027945,2]
[359439938,1746019851467,-2133.98,0.00027945,2]
[359439939,1746019851475,-2085.42,0.00027945,2]
[359439940,1746019851484,-400.0,0.00027945,2]
[359439941,1746019851494,-1255.91,0.00027945,2]
[359439942,1746019851503,-1954.9,0.00027945,2]
[359439943,1746019851513,-400.0,0.00027945,2]
[359439944,1746019851522,-400.0,0.00027945,2]
[359439945,1746019851532,-482.75,0.00027945,2]
[359439946,1746019851542,-156.33,0.00027945,2]
[359439947,1746019851551,-400.0,0.00027945,2]
[359439948,1746019851561,-262.698182,0.00027945,7]
[359439949,1746019851571,-262.698182,0.00027945,7]
[359439950,1746019851580,-785.98,0.00027945,2]
[359439951,1746019851590,-400.0,0.00027945,2]
[359439952,1746019851599,-262.698182,0.00027945,7]
[359439953,1746019851608,-262.698182,0.00027945,7]
[359439954,1746019851618,-4593.88,0.00027945,2]
[359439955,1746019851628,-226.93788044,0.00027945,2]
[359439956,1746019851637,-372.17224737,0.00027945,2]
[359439957,1746019851647,-500.0,0.00027945,2]
[359439958,1746019851656,-3156.88,0.00027945,2]
[359439959,1746019851666,-1138.91,0.00027945,2]
[359439960,1746019851676,-400.0,0.00027945,2]
[359439961,1746019851688,-400.0,0.00027945,2]
[359439962,1746019851698,-1541.01,0.00027945,2]
[359439963,1746019851707,-583.69,0.00027945,2]
[359439964,1746019851717,-400.0,0.00027945,2]
[359439965,1746019851726,-400.0,0.00027945,2]
[359439966,1746019851735,-569.3,0.00027945,2]
[359439967,1746019851744,-400.0,0.00027945,2]
[359439968,1746019851754,-400.0,0.00027945,2]
[359439969,1746019851763,-4251.49,0.00027945,2]
[359439970,1746019851772,-151.0,0.00027945,7]
[359439971,1746019851782,-151.0,0.00027945,7]
[359439972,1746019851791,-899.88,0.00027945,2]
[359439973,1746019851801,-400.0,0.00027945,2]
[359439974,1746019851811,-664.92,0.00027945,2]
[359439975,1746019851821,-531.5481156,0.00027945,2]
[359439976,1746019851830,-248.04,0.00027945,2]
[359439977,1746019851840,-1069.56,0.00027945,2]
[359439978,1746019851849,-500.0,0.00027972,2]
[359439979,1746019851859,-513.16650168,0.00027972,2]
[359439980,1746019851868,-500.0,0.00027972,2]
[359439981,1746019851878,-500.0,0.00027972,2]
[359439982,1746019851888,-485.0,0.00027972,2]
[359439983,1746019851897,-500.0,0.00027973,5]
[359439984,1746019851907,-500.0,0.00027973,5]
[359439985,1746019851916,-500.0,0.00027973,5]
[359439986,1746019851926,-500.0,0.00027973,5]
[359439987,1746019851938,-500.0,0.00027973,5]
[359439988,1746019851948,-500.68189854,0.00027973,5]
[359439989,1746019851958,-500.0,0.00027973,5]
[359439990,1746019851968,-500.0,0.00027973,5]
[359439991,1746019851977,-524.55896372,0.00027973,5]
[359439992,1746019851987,-500.0,0.00027973,5]
[359439993,1746019851996,-500.0,0.00027973,5]
[359439994,1746019852006,-500.0,0.00027973,5]
[359439995,1746019852020,-500.0,0.00027973,5]
[359439996,1746019852030,-500.0,0.00027973,5]
[359439997,1746019852039,-32451.65398417,0.0002799,2]
[359439998,1746019852050,-500.0,0.00028,2]
[359439999,1746019852060,-316.75340943,0.00028,2]
[359440000,1746019852070,-500.0,0.00028,2]
[359440001,1746019852080,-485.0,0.00028,2]
[359440002,1746019852090,-448.0,0.00028,30]
[359440003,1746019852100,-160.0,0.00028,3]
[359440004,1746019852112,-160.0,0.00028,3]
[359440005,1746019852122,-262.698182,0.00028,7]
[359440006,1746019852132,-262.698182,0.00028,7]
[359440007,1746019852142,-3227.1320355,0.00028,5]
[359440008,1746019852154,-250.0,0.00028001,2]
[359440009,1746019852163,-167.299,0.00028001,2]
[359440010,1746019852173,-150.19,0.00028001,2]
[359440011,1746019852184,-151.471,0.00028001,2]
[359440012,1746019852193,-159.979,0.00028001,2]
[359440013,1746019852204,-213.692,0.00028001,2]
[359440014,1746019852214,-500.0,0.00028027,2]
[359440015,1746019852224,-500.0,0.00028027,2]
[359440016,1746019852234,-485.0,0.00028027,2]
[359440017,1746019852243,-500.0,0.00028042,10]
[359440018,1746019852253,-500.0,0.00028055,2]
[359440019,1746019852263,-500.0,0.00028055,2]
[359440020,1746019852273,-485.0,0.00028055,2]
[359440021,1746019852283,-526746.15,0.00028055,5]
[359440022,1746019852293,-262.698182,0.00028055,7]
[359440023,1746019852303,-262.698182,0.00028055,7]
[359440024,1746019852312,-151.0,0.00028055,7]
[359440025,1746019852324,-500.0,0.00028073,5]
[359440026,1746019852335,-500.0,0.00028073,5]
[359440027,1746019852346,-520.70645038,0.00028073,5]
[359440028,1746019852355,-500.0,0.00028073,5]
[359440029,1746019852366,-500.0,0.00028073,5]
[359440030,1746019852377,-500.55854478,0.00028073,5]
[359440031,1746019852387,-501.19091362,0.00028073,5]
[359440032,1746019852397,-500.0,0.00028073,5]
[359440033,1746019852407,-500.0,0.00028073,5]
[359440034,1746019852418,-500.0,0.00028073,5]
[359440035,1746019852429,-500.0,0.00028073,5]
[359440036,1746019852442,-500.59675315,0.00028073,5]
[359440037,1746019852451,-500.0,0.00028073,3]
[359440038,1746019852461,-500.61353319,0.00028073,5]
[359440039,1746019852470,-500.0,0.00028073,5]
[359440040,1746019852480,-500.0,0.00028073,5]
[359440041,1746019852490,-501.91302523,0.00028073,5]
[359440042,1746019852500,-150.0,0.00028073,5]
[359440043,1746019852510,-500.0,0.00028073,5]
[359440044,1746019852520,-500.0,0.00028073,5]
[359440045,1746019852531,-437.2249175,0.00028073,5]
[359440046,1746019852541,-500.0,0.00028073,5]
[359440047,1746019852553,-521.83065461,0.00028073,5]
[359440048,1746019852563,-500.0,0.00028073,5]
[359440049,1746019852573,-596.17120108,0.00028073,5]
[359440050,1746019852582,-500.0,0.00028073,5]
[359440051,1746019852592,-151.0,0.00028073,5]
[359440052,1746019852601,-502.59765412,0.00028073,5]
[359440053,1746019852613,-500.0,0.00028073,5]